[Event "*** Titled Tuesday Blitz"]
[Site "Chess.com"]
[Date "2019.01.01"]
[Round "1"]
[White "M1711"]
[Black "Triumphmate"]
[Result "0-1"]
[WhiteElo "2540"]
[BlackElo "2217"]
[TimeControl "180+2"]
[EndTime "13:08:03 PST"]
[Termination "Triumphmate won by resignation"]

1. e4 {[%clk 0:03:01.5]} 1... e5 {[%clk 0:02:54.9]} 2. Nf3 {[%clk 0:02:58.7]}
2... Nc6 {[%clk 0:02:56.4]} 3. Bc4 {[%clk 0:02:58.2]} 3... Nf6 {[%clk
0:02:56.6]} 4. d3 {[%clk 0:02:58.2]} 4... Be7 {[%clk 0:02:58]} 5. O-O {[%clk
0:02:59.2]} 5... O-O {[%clk 0:02:59.5]} 6. Re1 {[%clk 0:03:00.9]} 6... h6 {[%clk
0:02:57.4]} 7. a4 {[%clk 0:03:00]} 7... a6 {[%clk 0:02:56.7]} 8. c3 {[%clk
0:02:54]} 8... d6 {[%clk 0:02:55]} 9. h3 {[%clk 0:02:53.2]} 9... Be6 {[%clk
0:02:54.9]} 10. Na3 {[%clk 0:02:50.4]} 10... Qd7 {[%clk 0:02:51.6]} 11. d4
{[%clk 0:02:36.7]} 11... exd4 {[%clk 0:02:38.6]} 12. cxd4 {[%clk 0:02:35.3]}
12... d5 {[%clk 0:02:35.7]} 13. exd5 {[%clk 0:02:27.3]} 13... Bxd5 {[%clk
0:02:36.6]} 14. Ne5 {[%clk 0:02:22.5]} 14... Nxe5 {[%clk 0:02:33.7]} 15. dxe5
{[%clk 0:02:23.5]} 15... Bxc4 {[%clk 0:02:34.7]} 16. exf6 {[%clk 0:02:10]} 16...
Qxd1 {[%clk 0:02:33.8]} 17. Rxd1 {[%clk 0:02:10.6]} 17... Bxa3 {[%clk
0:02:34.9]} 18. Rxa3 {[%clk 0:02:09.8]} 18... Rad8 {[%clk 0:02:33.3]} 19. Rxd8
{[%clk 0:01:41.3]} 19... Rxd8 {[%clk 0:02:35.2]} 20. Rc3 {[%clk 0:01:42.5]}
20... b5 {[%clk 0:02:34.5]} 21. axb5 {[%clk 0:01:41.9]} 21... axb5 {[%clk
0:02:35.1]} 22. fxg7 {[%clk 0:01:35.4]} 22... Kxg7 {[%clk 0:02:33.9]} 23. b3
{[%clk 0:01:10.1]} 23... Bxb3 {[%clk 0:02:33.3]} 24. Bb2 {[%clk 0:01:07.4]}
24... Bd5 {[%clk 0:02:12.4]} 25. Rxc7+ {[%clk 0:00:49.2]} 25... Kg8 {[%clk
0:02:09.3]} 26. Bf6 {[%clk 0:00:48]} 26... Re8 {[%clk 0:02:06.5]} 27. h4 {[%clk
0:00:34.2]} 27... h5 {[%clk 0:02:01.2]} 28. Kh2 {[%clk 0:00:32.5]} 28... Bc4
{[%clk 0:02:00.8]} 29. f3 {[%clk 0:00:23.9]} 29... Kh7 {[%clk 0:01:58.7]} 30.
Bd4 {[%clk 0:00:22.1]} 30... Kg6 {[%clk 0:01:49]} 31. g4 {[%clk 0:00:23.3]}
31... hxg4 {[%clk 0:01:47.8]} 32. fxg4 {[%clk 0:00:25.2]} 32... Re4 {[%clk
0:01:47]} 33. h5+ {[%clk 0:00:21.7]} 33... Kg5 {[%clk 0:01:37.1]} 34. Rd7 {[%clk
0:00:04.2]} 34... Kxg4 {[%clk 0:01:31.9]} 35. Bf6 {[%clk 0:00:04.6]} 35... Kxh5
{[%clk 0:01:28.7]} 36. Kg3 {[%clk 0:00:03.5]} 36... Re3+ {[%clk 0:01:26.1]} 37.
Kf4 {[%clk 0:00:04.5]} 37... Re1 {[%clk 0:01:24.6]} 38. Rd8 {[%clk 0:00:03.9]}
38... Rf1+ {[%clk 0:01:25.4]} 39. Ke5 {[%clk 0:00:04.9]} 39... Re1+ {[%clk
0:01:26.8]} 40. Kf4 {[%clk 0:00:06.1]} 40... Kg6 {[%clk 0:01:27.5]} 41. Bc3
{[%clk 0:00:05.2]} 41... Rf1+ {[%clk 0:01:28.1]} 42. Ke5 {[%clk 0:00:04.5]}
42... f6+ {[%clk 0:01:29.1]} 43. Ke4 {[%clk 0:00:04.7]} 43... Rh1 {[%clk
0:01:15]} 44. Rg8+ {[%clk 0:00:05.4]} 44... Bxg8 {[%clk 0:01:14.9]} 0-1

[Event "*** Titled Tuesday Blitz"]
[Site "Chess.com"]
[Date "2019.01.01"]
[Round "1"]
[White "pultineviciuspaulius"]
[Black "Zarikovs1999"]
[Result "1-0"]
[WhiteElo "2610"]
[BlackElo "2259"]
[TimeControl "180+2"]
[EndTime "13:08:15 PST"]
[Termination "pultineviciuspaulius won by resignation"]

1. d4 {[%clk 0:02:59.8]} 1... Nf6 {[%clk 0:02:59.8]} 2. Nf3 {[%clk 0:03:01.3]}
2... e6 {[%clk 0:02:53]} 3. Bf4 {[%clk 0:03:02.6]} 3... d5 {[%clk 0:02:52.4]} 4.
e3 {[%clk 0:03:03.5]} 4... c5 {[%clk 0:02:52.4]} 5. Nbd2 {[%clk 0:03:04.3]} 5...
Nc6 {[%clk 0:02:53.2]} 6. c3 {[%clk 0:03:05.3]} 6... Bd6 {[%clk 0:02:49]} 7. Bg3
{[%clk 0:03:06.3]} 7... Bxg3 {[%clk 0:02:49.2]} 8. hxg3 {[%clk 0:03:08.2]} 8...
Qd6 {[%clk 0:02:49.3]} 9. Bd3 {[%clk 0:03:01.4]} 9... e5 {[%clk 0:02:43.2]} 10.
dxc5 {[%clk 0:03:01.9]} 10... Qxc5 {[%clk 0:02:43]} 11. e4 {[%clk 0:03:03.8]}
11... Bg4 {[%clk 0:02:35.5]} 12. exd5 {[%clk 0:02:58.1]} 12... Qxd5 {[%clk
0:02:27.1]} 13. Qe2 {[%clk 0:02:51.9]} 13... O-O-O {[%clk 0:02:05.4]} 14. Bc4
{[%clk 0:02:52.7]} 14... Qd6 {[%clk 0:01:38]} 15. O-O-O {[%clk 0:02:41]} 15...
Qc7 {[%clk 0:01:36.8]} 16. Ne4 {[%clk 0:02:14.4]} 16... Nxe4 {[%clk 0:01:20.2]}
17. Qxe4 {[%clk 0:02:16.3]} 17... Bxf3 {[%clk 0:01:20.2]} 18. gxf3 {[%clk
0:02:15.4]} 18... h6 {[%clk 0:01:06.8]} 19. Qf5+ {[%clk 0:02:13.3]} 19... Kb8
{[%clk 0:01:04.9]} 20. Qxf7 {[%clk 0:02:14.6]} 20... Rhf8 {[%clk 0:00:46.1]} 21.
Qxc7+ {[%clk 0:02:12.8]} 21... Kxc7 {[%clk 0:00:46.9]} 22. Bd5 {[%clk
0:02:14.7]} 22... Ne7 {[%clk 0:00:40.6]} 23. Be4 {[%clk 0:02:15.4]} 23... Rxd1+
{[%clk 0:00:41.4]} 24. Rxd1 {[%clk 0:02:17.3]} 24... Rd8 {[%clk 0:00:42.7]} 25.
Rh1 {[%clk 0:02:16.8]} 25... b6 {[%clk 0:00:38.1]} 26. Kc2 {[%clk 0:02:13.3]}
26... Rd6 {[%clk 0:00:32.3]} 27. a4 {[%clk 0:02:13.4]} 27... a5 {[%clk
0:00:27.3]} 28. Rh5 {[%clk 0:02:14.5]} 28... Re6 {[%clk 0:00:26.4]} 29. b4
{[%clk 0:02:15.7]} 29... Kd6 {[%clk 0:00:26.1]} 30. Kb3 {[%clk 0:02:15.5]} 30...
Nc8 {[%clk 0:00:19]} 31. Rh1 {[%clk 0:02:03.3]} 31... Ne7 {[%clk 0:00:17.1]} 32.
Kc4 {[%clk 0:02:02.9]} 32... Ng8 {[%clk 0:00:17]} 33. Rd1+ {[%clk 0:02:00.7]}
33... Kc7 {[%clk 0:00:16.4]} 34. Bd5 {[%clk 0:01:58.2]} 34... Rd6 {[%clk
0:00:16]} 35. Re1 {[%clk 0:01:58]} 35... Nf6 {[%clk 0:00:09.8]} 36. Rxe5 {[%clk
0:01:58.7]} 36... axb4 {[%clk 0:00:11.1]} 37. cxb4 {[%clk 0:01:59.1]} 37... Nd7
{[%clk 0:00:11.5]} 38. Re7 {[%clk 0:01:59.7]} 38... Kd8 {[%clk 0:00:06.3]} 39.
Re6 {[%clk 0:02:01]} 39... Rxe6 {[%clk 0:00:06]} 40. Bxe6 {[%clk 0:02:02.9]}
40... Ne5+ {[%clk 0:00:07.6]} 41. Kb5 {[%clk 0:02:04.4]} 41... Kc7 {[%clk
0:00:08.9]} 42. Bd5 {[%clk 0:02:05.4]} 42... Nd7 {[%clk 0:00:05.5]} 43. a5
{[%clk 0:02:05.9]} 43... bxa5 {[%clk 0:00:07.1]} 44. bxa5 {[%clk 0:02:07.8]}
44... Kb8 {[%clk 0:00:07.2]} 45. a6 {[%clk 0:02:08.6]} 45... Ka7 {[%clk
0:00:06.5]} 46. Kc6 {[%clk 0:02:07.6]} 46... Nb6 {[%clk 0:00:07.4]} 47. Be4
{[%clk 0:02:06.2]} 47... Kxa6 {[%clk 0:00:07.7]} 48. Kd6 {[%clk 0:02:07.7]}
48... Kb5 {[%clk 0:00:08]} 49. Ke6 {[%clk 0:02:09]} 49... Nc4 {[%clk 0:00:07.3]}
50. Kf7 {[%clk 0:02:08.5]} 50... g5 {[%clk 0:00:05.7]} 51. Kg6 {[%clk
0:02:05.9]} 51... Nb2 {[%clk 0:00:06.2]} 52. Kxh6 {[%clk 0:02:06]} 52... Nd1
{[%clk 0:00:07.7]} 53. Kxg5 {[%clk 0:02:07]} 53... Kc5 {[%clk 0:00:08.8]} 54.
Kf6 {[%clk 0:02:03]} 54... Nxf2 {[%clk 0:00:06.7]} 55. g4 {[%clk 0:02:00.9]}
55... Kd4 {[%clk 0:00:03.9]} 56. g5 {[%clk 0:02:01.5]} 56... Nh3 {[%clk
0:00:05.2]} 57. g6 {[%clk 0:02:02.1]} 57... Nf4 {[%clk 0:00:06.8]} 58. g7 {[%clk
0:02:03.7]} 58... Nh5+ {[%clk 0:00:08]} 59. Kf7 {[%clk 0:02:05.1]} 59... Nxg7
{[%clk 0:00:09.9]} 60. Kxg7 {[%clk 0:02:06.9]} 60... Ke5 {[%clk 0:00:11.7]} 61.
Kg6 {[%clk 0:02:08.1]} 61... Kf4 {[%clk 0:00:13.4]} 62. Kf6 {[%clk 0:02:09.5]}
1-0

[Event "*** Titled Tuesday Blitz"]
[Site "Chess.com"]
[Date "2019.01.01"]
[Round "1"]
[White "Boundless_Strike"]
[Black "Shant_Sargsyan"]
[Result "0-1"]
[WhiteElo "2463"]
[BlackElo "2971"]
[TimeControl "180+2"]
[EndTime "13:08:17 PST"]
[Termination "Shant_Sargsyan won by resignation"]

1. e4 {[%clk 0:02:55.9]} 1... e5 {[%clk 0:02:59.8]} 2. f4 {[%clk 0:02:56]} 2...
d5 {[%clk 0:03:01]} 3. exd5 {[%clk 0:02:55.6]} 3... exf4 {[%clk 0:03:02.4]} 4.
Nf3 {[%clk 0:02:56.8]} 4... Nf6 {[%clk 0:03:03.7]} 5. Nc3 {[%clk 0:02:48.5]}
5... Nxd5 {[%clk 0:03:00.5]} 6. Bc4 {[%clk 0:02:45.6]} 6... Be6 {[%clk
0:03:01.2]} 7. Bxd5 {[%clk 0:02:36.5]} 7... Bxd5 {[%clk 0:03:03.1]} 8. O-O
{[%clk 0:02:37.9]} 8... Be7 {[%clk 0:03:03.6]} 9. d4 {[%clk 0:02:39]} 9... O-O
{[%clk 0:02:53.6]} 10. Bxf4 {[%clk 0:02:39]} 10... Bxf3 {[%clk 0:02:51.1]} 11.
Rxf3 {[%clk 0:02:31]} 11... Nc6 {[%clk 0:02:52]} 12. d5 {[%clk 0:02:29.7]} 12...
Bc5+ {[%clk 0:02:48.3]} 13. Kh1 {[%clk 0:02:24.2]} 13... Nd4 {[%clk 0:02:49.6]}
14. Rd3 {[%clk 0:02:23.5]} 14... Nf5 {[%clk 0:02:50.5]} 15. Qg4 {[%clk
0:02:14.6]} 15... g6 {[%clk 0:02:51.4]} 16. Ne4 {[%clk 0:01:50.2]} 16... Be7
{[%clk 0:02:45.3]} 17. Be5 {[%clk 0:01:40.3]} 17... f6 {[%clk 0:02:42.5]} 18.
Bf4 {[%clk 0:01:35.4]} 18... Qd7 {[%clk 0:02:39.8]} 19. c4 {[%clk 0:01:25.2]}
19... Rad8 {[%clk 0:02:40.7]} 20. Rad1 {[%clk 0:01:20.3]} 20... Ng7 {[%clk
0:02:33.8]} 21. Qg3 {[%clk 0:01:17.9]} 21... Nh5 {[%clk 0:02:34.7]} 22. Qf3
{[%clk 0:01:15.5]} 22... Nxf4 {[%clk 0:02:35.2]} 23. Qxf4 {[%clk 0:01:17.4]}
23... f5 {[%clk 0:02:37.1]} 24. Ng5 {[%clk 0:01:08.5]} 24... Bxg5 {[%clk
0:02:38.3]} 25. Qxg5 {[%clk 0:01:10.4]} 25... Rde8 {[%clk 0:02:38.8]} 26. h3
{[%clk 0:01:11.4]} 26... Re4 {[%clk 0:02:39.4]} 27. d6 {[%clk 0:01:04.7]} 27...
c5 {[%clk 0:02:30]} 28. Re3 {[%clk 0:01:05.1]} 28... Rfe8 {[%clk 0:02:29.4]} 29.
Rxe4 {[%clk 0:01:06.3]} 29... Rxe4 {[%clk 0:02:31.3]} 30. Qf6 {[%clk 0:01:06.5]}
30... b6 {[%clk 0:02:21.5]} 31. b3 {[%clk 0:01:05.2]} 31... Re8 {[%clk
0:02:22.4]} 32. Rd5 {[%clk 0:01:04.1]} 32... Qd8 {[%clk 0:02:14.5]} 33. d7
{[%clk 0:01:00.4]} 33... Re1+ {[%clk 0:02:15.9]} 34. Kh2 {[%clk 0:01:01]} 34...
Qxf6 {[%clk 0:02:17.4]} 35. d8=Q+ {[%clk 0:01:02.2]} 35... Qxd8 {[%clk
0:02:19.1]} 36. Rxd8+ {[%clk 0:01:04.1]} 36... Kf7 {[%clk 0:02:21]} 37. Rd7+
{[%clk 0:01:02.9]} 37... Re7 {[%clk 0:02:22.3]} 38. Rd6 {[%clk 0:01:04.3]} 38...
Kg7 {[%clk 0:02:17.4]} 39. Kg3 {[%clk 0:01:04]} 39... h5 {[%clk 0:02:18.3]} 40.
Kf4 {[%clk 0:00:53.3]} 40... Kh6 {[%clk 0:02:18.9]} 41. g3 {[%clk 0:00:53.4]}
41... Re2 {[%clk 0:02:18.4]} 42. Rd8 {[%clk 0:00:44]} 42... Rxa2 {[%clk
0:02:16.4]} 43. Rh8+ {[%clk 0:00:37.7]} 43... Kg7 {[%clk 0:02:17.4]} 44. Rb8
{[%clk 0:00:39.6]} 44... Kf6 {[%clk 0:02:04.7]} 45. Rf8+ {[%clk 0:00:40]} 45...
Ke7 {[%clk 0:02:06.2]} 46. Ra8 {[%clk 0:00:39.2]} 46... Ra3 {[%clk 0:01:55.4]}
47. Ke5 {[%clk 0:00:36.1]} 47... Kf7 {[%clk 0:01:48.2]} 48. Rb8 {[%clk
0:00:31.1]} 48... Rxb3 {[%clk 0:01:47.8]} 49. Rb7+ {[%clk 0:00:32.4]} 49... Ke8
{[%clk 0:01:49.7]} 50. Rxa7 {[%clk 0:00:15.3]} 50... Rxg3 {[%clk 0:01:50.2]} 51.
Ke6 {[%clk 0:00:16.3]} 51... Re3+ {[%clk 0:01:51.1]} 52. Kd6 {[%clk 0:00:17.6]}
52... Rxh3 {[%clk 0:01:51.7]} 53. Kc6 {[%clk 0:00:18.5]} 53... Rb3 {[%clk
0:01:52.3]} 0-1

[Event "*** Titled Tuesday Blitz"]
[Site "Chess.com"]
[Date "2019.01.01"]
[Round "1"]
[White "FelixBlohberger"]
[Black "pawnhopper316"]
[Result "1-0"]
[WhiteElo "2592"]
[BlackElo "2243"]
[TimeControl "180+2"]
[EndTime "13:08:26 PST"]
[Termination "FelixBlohberger won by resignation"]

1. c4 {[%clk 0:02:59.6]} 1... Nf6 {[%clk 0:03:00.3]} 2. Nc3 {[%clk 0:02:59.7]}
2... g6 {[%clk 0:02:59.3]} 3. e4 {[%clk 0:03:00.2]} 3... d6 {[%clk 0:02:58.5]}
4. d4 {[%clk 0:03:01]} 4... Bg7 {[%clk 0:02:59.8]} 5. Be2 {[%clk 0:03:01.2]}
5... O-O {[%clk 0:03:01]} 6. Be3 {[%clk 0:02:59.3]} 6... e5 {[%clk 0:03:00.9]}
7. d5 {[%clk 0:03:00.2]} 7... c6 {[%clk 0:02:59.8]} 8. h4 {[%clk 0:02:57.5]}
8... cxd5 {[%clk 0:02:58.1]} 9. cxd5 {[%clk 0:02:59.4]} 9... h5 {[%clk 0:02:54]}
10. f3 {[%clk 0:02:49.8]} 10... Na6 {[%clk 0:02:17.6]} 11. Nh3 {[%clk
0:02:44.4]} 11... Bxh3 {[%clk 0:02:16.7]} 12. Rxh3 {[%clk 0:02:43.9]} 12... Nc5
{[%clk 0:02:03.4]} 13. Qd2 {[%clk 0:02:40.3]} 13... Qa5 {[%clk 0:01:53.3]} 14.
Rb1 {[%clk 0:02:32.2]} 14... Qd8 {[%clk 0:01:33.3]} 15. b4 {[%clk 0:02:17.2]}
15... Na6 {[%clk 0:01:33.1]} 16. Kf2 {[%clk 0:02:09]} 16... Rc8 {[%clk
0:01:32.1]} 17. Nb5 {[%clk 0:02:02.5]} 17... Nc7 {[%clk 0:01:18.7]} 18. Nxa7
{[%clk 0:01:55.6]} 18... Qd7 {[%clk 0:01:17.4]} 19. Nxc8 {[%clk 0:01:55.1]}
19... Rxc8 {[%clk 0:01:14.2]} 20. Rc1 {[%clk 0:01:47.4]} 20... Ra8 {[%clk
0:01:04.3]} 21. Rhh1 {[%clk 0:01:37.9]} 21... Nb5 {[%clk 0:01:04.6]} 22. Bxb5
{[%clk 0:01:28]} 22... Qxb5 {[%clk 0:01:06.5]} 23. Rc7 {[%clk 0:01:23]} 23...
Ne8 {[%clk 0:00:56.4]} 24. Rc2 {[%clk 0:01:17.2]} 24... Qd7 {[%clk 0:00:56.9]}
25. Rhc1 {[%clk 0:01:15.5]} 25... Bf6 {[%clk 0:00:54.2]} 26. Bg5 {[%clk
0:01:12.2]} 26... Bg7 {[%clk 0:00:49.6]} 27. Kg1 {[%clk 0:01:12.2]} 27... Kh7
{[%clk 0:00:43]} 28. Kh2 {[%clk 0:00:51.4]} 28... Kg8 {[%clk 0:00:33.8]} 29. Bh6
{[%clk 0:00:50.4]} 29... Bf6 {[%clk 0:00:33]} 30. Bg5 {[%clk 0:00:50.3]} 30...
Bg7 {[%clk 0:00:33.8]} 31. Qd3 {[%clk 0:00:48.7]} 31... Kh7 {[%clk 0:00:32.1]}
32. Qd2 {[%clk 0:00:42.4]} 32... Kg8 {[%clk 0:00:30.9]} 33. Rc3 {[%clk
0:00:43.5]} 33... Kh7 {[%clk 0:00:30.6]} 34. Qc2 {[%clk 0:00:44.4]} 34... Nf6
{[%clk 0:00:28.2]} 35. Rc7 {[%clk 0:00:40.6]} 35... Qe8 {[%clk 0:00:28.4]} 36.
Rc8 {[%clk 0:00:39.2]} 36... Rxc8 {[%clk 0:00:25.7]} 37. Qxc8 {[%clk 0:00:41.1]}
37... Qa4 {[%clk 0:00:23]} 38. Qxb7 {[%clk 0:00:38.7]} 38... Qxa2 {[%clk
0:00:22.2]} 39. Qxf7 {[%clk 0:00:37]} 39... Ng4+ {[%clk 0:00:13.5]} 40. fxg4
{[%clk 0:00:36]} 40... hxg4 {[%clk 0:00:15.4]} 41. Bf6 {[%clk 0:00:32.9]} 41...
g3+ {[%clk 0:00:16.2]} 42. Kh3 {[%clk 0:00:32.6]} 1-0

[Event "*** Titled Tuesday Blitz"]
[Site "Chess.com"]
[Date "2019.01.01"]
[Round "1"]
[White "MateSchmate"]
[Black "Blagorod"]
[Result "0-1"]
[WhiteElo "2493"]
[BlackElo "2115"]
[TimeControl "180+2"]
[EndTime "13:08:36 PST"]
[Termination "Blagorod won by checkmate"]

1. e4 {[%clk 0:03:01.9]} 1... e5 {[%clk 0:02:59.5]} 2. Nf3 {[%clk 0:03:02.4]}
2... Nf6 {[%clk 0:03:00.2]} 3. Nxe5 {[%clk 0:03:00.3]} 3... d6 {[%clk
0:03:01.1]} 4. Nf3 {[%clk 0:03:01.5]} 4... Nxe4 {[%clk 0:03:02.1]} 5. Nc3 {[%clk
0:03:00.7]} 5... Nxc3 {[%clk 0:03:02.6]} 6. bxc3 {[%clk 0:03:01.3]} 6... Be7
{[%clk 0:03:04.2]} 7. g3 {[%clk 0:03:02.4]} 7... Nc6 {[%clk 0:02:59.3]} 8. Bg2
{[%clk 0:03:03.1]} 8... Be6 {[%clk 0:02:53.5]} 9. O-O {[%clk 0:03:03.7]} 9...
O-O {[%clk 0:02:53.8]} 10. d4 {[%clk 0:03:04]} 10... h6 {[%clk 0:02:52]} 11. d5
{[%clk 0:03:02.2]} 11... Bg4 {[%clk 0:02:49.9]} 12. dxc6 {[%clk 0:03:02.9]}
12... bxc6 {[%clk 0:02:51.1]} 13. Re1 {[%clk 0:03:01.4]} 13... Bf6 {[%clk
0:02:51.8]} 14. Qd3 {[%clk 0:03:00.6]} 14... Bh5 {[%clk 0:02:48.7]} 15. Be3
{[%clk 0:02:59.8]} 15... Bg6 {[%clk 0:02:47.5]} 16. Qd2 {[%clk 0:03:00.9]} 16...
c5 {[%clk 0:02:41.8]} 17. Rab1 {[%clk 0:02:58.2]} 17... Rb8 {[%clk 0:02:35.7]}
18. h4 {[%clk 0:02:57]} 18... Qd7 {[%clk 0:02:26.6]} 19. Rb3 {[%clk 0:02:56.5]}
19... Bh5 {[%clk 0:02:08.5]} 20. Reb1 {[%clk 0:02:51.3]} 20... Rbe8 {[%clk
0:02:00.8]} 21. c4 {[%clk 0:02:42]} 21... Qf5 {[%clk 0:01:51.1]} 22. Bf4 {[%clk
0:02:32.6]} 22... Re7 {[%clk 0:01:52]} 23. Re3 {[%clk 0:02:33.2]} 23... Rfe8
{[%clk 0:01:46.9]} 24. Rbe1 {[%clk 0:02:33.6]} 24... Rxe3 {[%clk 0:01:32]} 25.
Rxe3 {[%clk 0:02:32.2]} 25... Rb8 {[%clk 0:01:33]} 26. Kh2 {[%clk 0:02:26.1]}
26... g5 {[%clk 0:01:23.7]} 27. Bxg5 {[%clk 0:01:45.7]} 27... hxg5 {[%clk
0:01:21.4]} 28. Nxg5 {[%clk 0:01:28.1]} 28... Bd4 {[%clk 0:01:08.1]} 29. Re7
{[%clk 0:01:15.8]} 29... Bxf2 {[%clk 0:00:48.5]} 30. Bd5 {[%clk 0:01:11.8]}
30... Rb1 {[%clk 0:00:37.7]} 31. Bxf7+ {[%clk 0:00:52.3]} 31... Bxf7 {[%clk
0:00:36.7]} 32. Rxf7 {[%clk 0:00:53.3]} 32... Bg1+ {[%clk 0:00:19.4]} 33. Kh1
{[%clk 0:00:41.6]} 33... Qxf7 {[%clk 0:00:17.6]} 34. Qd3 {[%clk 0:00:18.6]}
34... Bd4+ {[%clk 0:00:13.8]} 35. Kg2 {[%clk 0:00:18.8]} 35... Qg7 {[%clk
0:00:07.9]} 36. Qf5 {[%clk 0:00:19.3]} 36... Qf6 {[%clk 0:00:06.7]} 37. Qh7+
{[%clk 0:00:19.6]} 37... Kf8 {[%clk 0:00:07.2]} 38. Qxc7 {[%clk 0:00:19.5]}
38... Qf1+ {[%clk 0:00:07.3]} 39. Kh2 {[%clk 0:00:19.6]} 39... Bg1+ {[%clk
0:00:08.2]} 40. Kh1 {[%clk 0:00:20.9]} 40... Bf2+ {[%clk 0:00:08]} 41. Kh2
{[%clk 0:00:22.5]} 41... Bg1+ {[%clk 0:00:08]} 42. Kh1 {[%clk 0:00:23.2]} 42...
Bf2+ {[%clk 0:00:08.8]} 43. Kh2 {[%clk 0:00:24.8]} 43... Qh1# {[%clk 0:00:10.3]}
0-1

[Event "*** Titled Tuesday Blitz"]
[Site "Chess.com"]
[Date "2019.01.01"]
[Round "1"]
[White "Morshynska"]
[Black "MatyChess1"]
[Result "0-1"]
[WhiteElo "2076"]
[BlackElo "2505"]
[TimeControl "180+2"]
[EndTime "13:08:37 PST"]
[Termination "MatyChess1 won by resignation"]

1. Nf3 {[%clk 0:02:41.7]} 1... Nf6 {[%clk 0:02:52.3]} 2. d4 {[%clk 0:02:41.5]}
2... g6 {[%clk 0:02:53.4]} 3. c4 {[%clk 0:02:41.2]} 3... Bg7 {[%clk 0:02:54.6]}
4. b3 {[%clk 0:02:41.7]} 4... O-O {[%clk 0:02:56.2]} 5. Bb2 {[%clk 0:02:41.7]}
5... d5 {[%clk 0:02:53.7]} 6. e3 {[%clk 0:02:42]} 6... c6 {[%clk 0:02:53.7]} 7.
Nc3 {[%clk 0:02:42.2]} 7... Bg4 {[%clk 0:02:53]} 8. Be2 {[%clk 0:02:42.6]} 8...
e6 {[%clk 0:02:53.4]} 9. O-O {[%clk 0:02:41.7]} 9... Nbd7 {[%clk 0:02:54.1]} 10.
Rc1 {[%clk 0:02:40.6]} 10... a6 {[%clk 0:02:48.5]} 11. h3 {[%clk 0:02:34.7]}
11... Bxf3 {[%clk 0:02:46.9]} 12. Bxf3 {[%clk 0:02:36.6]} 12... Re8 {[%clk
0:02:47.8]} 13. g4 {[%clk 0:02:30.8]} 13... dxc4 {[%clk 0:02:42.9]} 14. bxc4
{[%clk 0:02:31.1]} 14... e5 {[%clk 0:02:44.8]} 15. Bg2 {[%clk 0:02:29.7]} 15...
h6 {[%clk 0:02:42.7]} 16. Qb3 {[%clk 0:02:28.1]} 16... Rb8 {[%clk 0:02:37.7]}
17. Rfd1 {[%clk 0:02:28]} 17... exd4 {[%clk 0:02:32.5]} 18. exd4 {[%clk
0:02:29.9]} 18... Qc7 {[%clk 0:02:34]} 19. d5 {[%clk 0:02:13.1]} 19... Qf4
{[%clk 0:02:18.1]} 20. Qc2 {[%clk 0:01:54.8]} 20... Qxc4 {[%clk 0:02:02.7]} 21.
dxc6 {[%clk 0:01:43.7]} 21... bxc6 {[%clk 0:02:04.6]} 22. Na4 {[%clk 0:01:31.9]}
22... Qf4 {[%clk 0:01:48.5]} 23. Rd4 {[%clk 0:01:22.9]} 23... Qg5 {[%clk
0:01:07.4]} 24. Rc4 {[%clk 0:01:09]} 24... h5 {[%clk 0:00:56.8]} 25. f4 {[%clk
0:00:49.9]} 25... Qh4 {[%clk 0:00:35.8]} 26. g5 {[%clk 0:00:43]} 26... Nd5
{[%clk 0:00:33.6]} 27. Bxg7 {[%clk 0:00:27]} 27... Kxg7 {[%clk 0:00:19.7]} 28.
Bxd5 {[%clk 0:00:18.3]} 28... cxd5 {[%clk 0:00:20.2]} 29. Rd4 {[%clk 0:00:16.1]}
29... Qg3+ {[%clk 0:00:09.9]} 30. Kf1 {[%clk 0:00:07]} 30... Qxh3+ {[%clk
0:00:10.6]} 31. Kg1 {[%clk 0:00:07]} 31... Qg3+ {[%clk 0:00:11.3]} 32. Kf1
{[%clk 0:00:07]} 32... Re3 {[%clk 0:00:10.9]} 33. Rd2 {[%clk 0:00:06.4]} 33...
Rbe8 {[%clk 0:00:08.7]} 34. Rf2 {[%clk 0:00:06.2]} 34... Qh3+ {[%clk 0:00:09.7]}
35. Rg2 {[%clk 0:00:05.6]} 35... Qh1+ {[%clk 0:00:09.7]} 36. Kf2 {[%clk
0:00:05.8]} 36... Re2+ {[%clk 0:00:10.9]} 37. Qxe2 {[%clk 0:00:05.7]} 37...
Rxe2+ {[%clk 0:00:12.8]} 38. Kxe2 {[%clk 0:00:06.3]} 38... Qxc1 {[%clk
0:00:14.7]} 0-1

[Event "*** Titled Tuesday Blitz"]
[Site "Chess.com"]
[Date "2019.01.01"]
[Round "1"]
[White "gemarin"]
[Black "Mikhail_Golubev"]
[Result "0-1"]
[WhiteElo "2067"]
[BlackElo "2503"]
[TimeControl "180+2"]
[EndTime "13:08:38 PST"]
[Termination "Mikhail_Golubev won on time"]

1. d4 {[%clk 0:03:00.6]} 1... Nf6 {[%clk 0:03:00.3]} 2. c4 {[%clk 0:03:00.9]}
2... g6 {[%clk 0:03:01.1]} 3. Nc3 {[%clk 0:03:01.4]} 3... Bg7 {[%clk 0:03:02.1]}
4. Nf3 {[%clk 0:03:02.3]} 4... O-O {[%clk 0:03:01.9]} 5. e4 {[%clk 0:03:03.1]}
5... d6 {[%clk 0:03:02.6]} 6. Be2 {[%clk 0:03:03.8]} 6... e5 {[%clk 0:03:02.7]}
7. d5 {[%clk 0:03:04.5]} 7... Qe8 {[%clk 0:03:01.9]} 8. O-O {[%clk 0:02:59.7]}
8... Nh5 {[%clk 0:03:00.5]} 9. Re1 {[%clk 0:02:47.6]} 9... Nf4 {[%clk
0:02:51.8]} 10. Bf1 {[%clk 0:02:46.5]} 10... Bg4 {[%clk 0:02:52.3]} 11. h3
{[%clk 0:02:14.7]} 11... Bxf3 {[%clk 0:02:38.4]} 12. Qxf3 {[%clk 0:02:14.6]}
12... f5 {[%clk 0:02:31.1]} 13. Bxf4 {[%clk 0:01:58.3]} 13... fxe4 {[%clk
0:02:24.2]} 14. Rxe4 {[%clk 0:01:54.8]} 14... Qd8 {[%clk 0:02:13.5]} 15. Qe3
{[%clk 0:01:18]} 15... exf4 {[%clk 0:02:13.3]} 16. Rxf4 {[%clk 0:01:18.3]} 16...
Rxf4 {[%clk 0:02:04.9]} 17. Qxf4 {[%clk 0:01:18.7]} 17... Nd7 {[%clk 0:02:06.5]}
18. Re1 {[%clk 0:01:08]} 18... Nc5 {[%clk 0:01:50.9]} 19. Be2 {[%clk 0:01:03.8]}
19... Qf8 {[%clk 0:01:46.3]} 20. Qd2 {[%clk 0:00:54.5]} 20... Qf6 {[%clk
0:01:01.7]} 21. Bg4 {[%clk 0:00:49.2]} 21... Rf8 {[%clk 0:01:01.9]} 22. Re2
{[%clk 0:00:46.2]} 22... h5 {[%clk 0:00:56.3]} 23. Be6+ {[%clk 0:00:45.9]} 23...
Kh7 {[%clk 0:00:56]} 24. Nb5 {[%clk 0:00:43.2]} 24... a6 {[%clk 0:00:50.2]} 25.
Nc3 {[%clk 0:00:35.6]} 25... Bh6 {[%clk 0:00:42.8]} 26. Qc2 {[%clk 0:00:35.1]}
26... Qd4 {[%clk 0:00:40.1]} 27. b4 {[%clk 0:00:21.5]} 27... Nd3 {[%clk
0:00:27.4]} 28. a3 {[%clk 0:00:13.1]} 28... Ne5 {[%clk 0:00:15.9]} 29. c5 {[%clk
0:00:11.6]} 29... h4 {[%clk 0:00:13.4]} 30. Ne4 {[%clk 0:00:10.4]} 30... Qa1+
{[%clk 0:00:11.8]} 31. Kh2 {[%clk 0:00:08.2]} 31... Bf4+ {[%clk 0:00:12.4]} 32.
g3 {[%clk 0:00:09]} 32... hxg3+ {[%clk 0:00:10.1]} 33. fxg3 {[%clk 0:00:09.7]}
33... Nf3+ {[%clk 0:00:09.2]} 34. Kg2 {[%clk 0:00:09.8]} 34... Qg1+ {[%clk
0:00:08.8]} 35. Kxf3 {[%clk 0:00:10.1]} 35... Bxg3+ {[%clk 0:00:06.1]} 36. Kg4
{[%clk 0:00:09.3]} 36... Bf2+ {[%clk 0:00:04]} 0-1